[Event "FIDE WYCC Girls U14 2023"]
[Site "Montesilvano"]
[Date "2023.11.16"]
[Round "4.22"]
[White "Mueller, Riyanna"]
[Black "Orazalina, Nursulu"]
[Result "1/2-1/2"]
[ECO "B22"]
[WhiteElo "1754"]
[BlackElo "1428"]
[Annotator "NA RC"]
[PlyCount "83"]
[EventDate "2023.11.13"]
[EventType "swiss"]
[EventCountry "ITA"]
[SourceTitle "playchess.com"]
[Source "ChessBase"]
[SourceQuality "1"]
[TimeControl "40/5400+30:1800+30"]

1. e4 {[%emt 0:00:03]} c5 {[%emt 0:00:05]} 2. c3 {[%emt 0:00:04]} d5 {[%emt 0:00:09]} 3. exd5 {[%emt 0:00:10]} Qxd5 {[%emt 0:00:09]} 4. d4 {[%emt 0:00:12]} Nc6 {[%emt 0:00:07]} 5. Nf3 {[%emt 0:00:12]} Bg4 {[%emt 0:00:32]} 6. Be2 {[%emt 0:04:13]} cxd4 {[%emt 0:00:09]} 7. cxd4 {[%emt 0:00:07]} e6 {[%emt 0:00:07]} 8. Nc3 {[%emt 0:00:06]} Bb4 {[%emt 0:00:09]} 9. h3 {[%emt 0:01:06]} Bxf3 {[%emt 0:02:32]} 10. Bxf3 {[%emt 0:00:11]} Qc4 {[%emt 0:01:23]} 11. Bd2 {[%emt 0:11:59]} Qxd4 {[%emt 0:05:18]} 12. O-O {[%emt 0:00:54]} Rd8 {[%emt 0:02:47]} 13. Qa4 {[%emt 0:02:33]} Nge7 {[%emt 0:03:57]} 14. Be3 {[%emt 0:00:54]} Qe5 {[%emt 0:02:02]} 15. Ne2 {[%emt 0:11:33]} O-O {[%emt 0:07:05]} 16. a3 {[%emt 0:02:48]} Bd6 {[%emt 0:15:29]} 17. g3 {[%emt 0:02:52]} Nd5 {[%emt 0:05:17]} 18. Bf4 {[%emt 0:03:25]} Nxf4 {[%emt 0:00:29]} 19. Nxf4 {[%emt 0:00:18]} Qf6 {[%emt 0:06:17]} 20. Bxc6 {[%emt 0:01:31]} bxc6 {[%emt 0:00:09]} 21. Ng2 {[%emt 0:00:29]} Qxb2 {[%emt 0:02:40]} 22. Qxc6 Be5 {[%emt 0:00:38]} 23. Rae1 {[%emt 0:05:15]} Bd4 {[%emt 0:07:21]} 24. Qa4 {[%emt 0:04:49]} Bb6 {[%emt 0:02:36]} 25. Ne3 {[%emt 0:01:19]} Rd4 {[%emt 0:01:11]} 26. Qa6 {[%emt 0:01:33]} Qb3 {[%emt 0:01:29]} 27. Rb1 {[%emt 0:06:27]} Qd3 {[%emt 0:00:20]} 28. Qxd3 {[%emt 0:01:59]} Rxd3 {[%emt 0:00:06]} 29. a4 {[%emt 0:00:37]} Bxe3 {[%emt 0:00:16]} 30. fxe3 {[%emt 0:00:05]} Rxe3 {[%emt 0:00:07]} 31. Rb7 {[%emt 0:00:25]} a5 {[%emt 0:00:59]} 32. Rb5 {[%emt 0:01:30]} Rxg3+ {[%emt 0:00:14]} 33. Kh2 {[%emt 0:00:09]} Ra3 {[%emt 0:00:16]} 34. Rxa5 {[%emt 0:00:19]} Rb8 {[%emt 0:00:26]} 35. Rf2 {[%emt 0:01:33]} g6 {[%emt 0:00:38]} 36. Ra7 {[%emt 0:01:49]} f5 {[%emt 0:02:08]} 37. Rc2 {[%emt 0:00:48]} e5 {[%emt 0:00:52]} 38. a5 {[%emt 0:00:29]} f4 {[%emt 0:00:54]} 39. a6 {[%emt 0:00:14]} e4 {[%emt 0:00:57]} 40. Rb7 {[%emt 0:00:00]} Ra8 {[%emt 0:00:29]} 41. Rcc7 {[%emt 0:03:21]} R3xa6 {[%emt 0:31:08]} 42. Rg7+ {[%emt 0:00:21]} 1/2-1/2

[Event "FIDE WYCC Girls U14 2023"]
[Site "Montesilvano"]
[Date "2023.11.16"]
[Round "4.23"]
[White "Cutiyog, Jirah Floravie"]
[Black "Jankovic, Tamara"]
[Result "1/2-1/2"]
[ECO "B66"]
[WhiteElo "1305"]
[BlackElo "1711"]
[Annotator "NA RC"]
[PlyCount "78"]
[EventDate "2023.11.13"]
[EventType "swiss"]
[EventCountry "ITA"]
[SourceTitle "playchess.com"]
[Source "ChessBase"]
[SourceQuality "1"]
[TimeControl "40/5400+30:1800+30"]

1. e4 {[%emt 0:00:02]} c5 {[%emt 0:00:12]} 2. Nf3 {[%emt 0:00:05]} d6 {[%emt 0:00:03]} 3. d4 {[%emt 0:00:06]} cxd4 {[%emt 0:00:05]} 4. Nxd4 {[%emt 0:00:05]} Nf6 {[%emt 0:00:08]} 5. Nc3 {[%emt 0:00:08]} Nc6 {[%emt 0:00:04]} 6. Bg5 {[%emt 0:00:27]} e6 {[%emt 0:00:09]} 7. Qd2 {[%emt 0:01:08]} a6 {[%emt 0:00:05]} 8. O-O-O {[%emt 0:00:18]} h6 {[%emt 0:00:08]} 9. Be3 {[%emt 0:00:28]} Bd7 {[%emt 0:00:06]} 10. f3 {[%emt 0:01:52]} b5 {[%emt 0:00:44]} 11. a3 {[%emt 0:00:50]} Nxd4 {[%emt 0:09:14]} 12. Qxd4 {[%emt 0:00:52]} e5 {[%emt 0:07:36]} 13. Qd2 {[%emt 0:00:52]} Qa5 {[%emt 0:01:19]} 14. Nd5 {[%emt 0:00:46]} Qxd2+ {[%emt 0:00:09]} 15. Rxd2 {[%emt 0:00:06]} Nxd5 {[%emt 0:00:06]} 16. Rxd5 {[%emt 0:00:27]} Be6 {[%emt 0:00:12]} 17. Rd2 {[%emt 0:00:29]} Be7 {[%emt 0:01:33]} 18. Be2 {[%emt 0:00:45]} O-O {[%emt 0:00:36]} 19. Rhd1 {[%emt 0:01:53]} Rac8 {[%emt 0:01:54]} 20. Kb1 {[%emt 0:01:52]} Rc6 {[%emt 0:01:33]} 21. f4 {[%emt 0:05:47]} f6 {[%emt 0:01:43]} 22. f5 {[%emt 0:01:26]} Bc4 {[%emt 0:01:59]} 23. b3 {[%emt 0:01:41]} Bxe2 {[%emt 0:00:56]} 24. Rxe2 {[%emt 0:00:21]} Rfc8 {[%emt 0:00:38]} 25. Rd5 {[%emt 0:02:29]} Kf7 {[%emt 0:03:54]} 26. Rd3 {[%emt 0:13:21]} Bd8 {[%emt 0:22:42]} 27. Bf2 {[%emt 0:11:28]} Bb6 {[%emt 0:04:20]} 28. Bxb6 {[%emt 0:02:57]} Rxb6 {[%emt 0:00:05]} 29. Red2 {[%emt 0:00:13]} Rcc6 {[%emt 0:02:35]} 30. Kb2 {[%emt 0:03:03]} Ke8 {[%emt 0:02:52]} 31. Rg3 {[%emt 0:01:16]} Rb7 {[%emt 0:00:41]} 32. Rdd3 {[%emt 0:02:19]} Kd8 {[%emt 0:02:16]} 33. Rc3 {[%emt 0:01:15]} Rxc3 {[%emt 0:10:50]} 34. Kxc3 {[%emt 0:04:47]} a5 {[%emt 0:02:06]} 35. Kd3 {[%emt 0:08:51]} Rc7 {[%emt 0:04:17]} 36. c3 {[%emt 0:04:41]} Kc8 {[%emt 0:04:57]} 37. h4 {[%emt 0:03:28]} Kb7 {[%emt 0:01:07]} 38. Kc2 {[%emt 0:01:31]} Kc6 {[%emt 0:04:05]} 39. Rd3 {[%emt 0:01:03]} Rd7 {[%emt 0:01:26]} 1/2-1/2

[Event "FIDE WYCC Girls U14 2023"]
[Site "Montesilvano"]
[Date "2023.11.16"]
[Round "4.24"]
[White "Briem, Gudrun Fanney"]
[Black "Maral Altankhuyag"]
[Result "0-1"]
[ECO "A45"]
[WhiteElo "1692"]
[BlackElo "1398"]
[Annotator "NA RC"]
[PlyCount "88"]
[EventDate "2023.11.13"]
[EventType "swiss"]
[EventCountry "ITA"]
[SourceTitle "playchess.com"]
[Source "ChessBase"]
[SourceQuality "1"]
[TimeControl "40/5400+30:1800+30"]

1. d4 {[%emt 0:00:09]} Nf6 {[%emt 0:00:31]} 2. Bf4 {[%emt 0:00:26]} g6 {[%emt 0:00:23]} 3. Nc3 {[%emt 0:00:19]} d5 {[%emt 0:02:02]} 4. e3 {[%emt 0:00:15]} Bg7 {[%emt 0:00:16]} 5. h4 {[%emt 0:00:21]} O-O {[%emt 0:08:48]} 6. h5 {[%emt 0:02:24]} b6 {[%emt 0:09:49]} 7. Be2 {[%emt 0:11:36]} Bb7 {[%emt 0:12:09]} 8. g4 {[%emt 0:09:52]} c5 {[%emt 0:03:39]} 9. g5 {[%emt 0:08:03]} Ne4 {[%emt 0:03:28]} 10. Nxe4 {[%emt 0:13:26]} dxe4 {[%emt 0:01:03]} 11. c3 {[%emt 0:11:04]} e5 {[%emt 0:04:15]} 12. dxe5 {[%emt 0:04:32]} Nc6 {[%emt 0:12:20]} 13. Qa4 {[%emt 0:05:33]} Nxe5 {[%emt 0:03:27]} 14. Bxe5 {[%emt 0:06:13]} Bxe5 {[%emt 0:00:20]} 15. Nh3 {[%emt 0:00:21]} a6 {[%emt 0:14:41]} 16. hxg6 {[%emt 0:04:30]} hxg6 {[%emt 0:03:14]} 17. Qc2 {[%emt 0:03:29]} Kg7 {[%emt 0:00:55]} 18. Rg1 {[%emt 0:02:55]} Rh8 {[%emt 0:02:32]} 19. Bg4 {[%emt 0:01:18]} Rh4 {[%emt 0:02:09]} 20. Rd1 {[%emt 0:05:50]} Qh8 {[%emt 0:00:07]} 21. Nf4 {[%emt 0:01:36]} Bxf4 {[%emt 0:07:08]} 22. exf4 {[%emt 0:00:10]} e3 {[%emt 0:00:06]} 23. fxe3 {[%emt 0:02:21]} Rh2 {[%emt 0:00:07]} 24. Rd2 {[%emt 0:03:18]} Qh4+ {[%emt 0:00:14]} 25. Kf1 {[%emt 0:01:50]} Rh1 {[%emt 0:01:20]} 26. Rdg2 {[%emt 0:00:53]} Bxg2+ {[%emt 0:01:03]} 27. Qxg2 {[%emt 0:00:14]} Rh2 {[%emt 0:01:57]} 28. Qf3 {[%emt 0:00:34]} Rd8 {[%emt 0:01:08]} 29. Rg3 {[%emt 0:00:43]} Rd1+ {[%emt 0:01:55]} 30. Qxd1 {[%emt 0:00:17]} Qxg3 {[%emt 0:00:04]} 31. Qf3 {[%emt 0:00:23]} Qxf3+ {[%emt 0:00:31]} 32. Bxf3 {[%emt 0:00:05]} Rxb2 {[%emt 0:00:03]} 33. a4 {[%emt 0:01:09]} b5 {[%emt 0:01:15]} 34. axb5 {[%emt 0:00:36]} axb5 {[%emt 0:00:13]} 35. Bd5 {[%emt 0:00:33]} Rc2 {[%emt 0:00:39]} 36. c4 {[%emt 0:00:27]} b4 {[%emt 0:00:15]} 37. Ke1 {[%emt 0:00:17]} b3 {[%emt 0:00:16]} 38. Kd1 {[%emt 0:00:43]} Kf8 {[%emt 0:00:50]} 39. e4 {[%emt 0:00:30]} Rc3 {[%emt 0:00:44]} 40. e5 {[%emt 0:00:00]} b2 {[%emt 0:00:00]} 41. Be4 {[%emt 0:00:44]} Rc1+ {[%emt 0:00:22]} 42. Kd2 {[%emt 0:00:13]} b1=Q {[%emt 0:00:07]} 43. Bxb1 {[%emt 0:00:11]} Rxb1 {[%emt 0:00:05]} 44. Kd3 {[%emt 0:00:23]} Ke7 {[%emt 0:00:05]} 0-1

[Event "FIDE WYCC Girls U14 2023"]
[Site "Montesilvano"]
[Date "2023.11.16"]
[Round "4.25"]
[White "Nguyen, Thuy Linh"]
[Black "Dicen, Elis Denele"]
[Result "0-1"]
[ECO "D30"]
[WhiteElo "1398"]
[BlackElo "1976"]
[Annotator "NA RC"]
[PlyCount "136"]
[EventDate "2023.11.13"]
[EventType "swiss"]
[EventCountry "ITA"]
[SourceTitle "playchess.com"]
[Source "ChessBase"]
[SourceQuality "1"]
[TimeControl "40/5400+30:1800+30"]

1. d4 {[%emt 0:00:03]} d5 {[%emt 0:00:07]} 2. c4 {[%emt 0:00:09]} e6 {[%emt 0:00:12]} 3. Nf3 {[%emt 0:00:08]} Nf6 {[%emt 0:00:11]} 4. g3 {[%emt 0:00:24]} dxc4 {[%emt 0:00:17]} 5. Qa4+ {[%emt 0:00:23]} Nbd7 {[%emt 0:00:28]} 6. Qxc4 {[%emt 0:00:22]} a6 {[%emt 0:01:27]} 7. Bg2 {[%emt 0:00:19]} b5 {[%emt 0:01:01]} 8. Qc2 {[%emt 0:00:15]} Bb7 {[%emt 0:00:39]} 9. Bd2 {[%emt 0:08:39]} c5 {[%emt 0:01:50]} 10. O-O {[%emt 0:00:49]} Rc8 {[%emt 0:01:06]} 11. Qd3 {[%emt 0:01:33]} Be4 {[%emt 0:11:28]} 12. Qa3 {[%emt 0:06:23]} Qb6 {[%emt 0:05:58]} 13. Ba5 {[%emt 0:04:02]} Qb7 {[%emt 0:01:22]} 14. dxc5 {[%emt 0:04:30]} Bxc5 {[%emt 0:01:47]} 15. Bb4 {[%emt 0:01:34]} O-O {[%emt 0:03:52]} 16. Nbd2 {[%emt 0:02:41]} Bd5 {[%emt 0:08:06]} 17. Rfc1 {[%emt 0:03:10]} Qb6 {[%emt 0:03:58]} 18. e3 {[%emt 0:07:09]} Bxb4 {[%emt 0:03:42]} 19. Qxb4 {[%emt 0:00:14]} a5 {[%emt 0:00:20]} 20. Qd4 {[%emt 0:03:20]} Qb7 {[%emt 0:01:19]} 21. Ne1 {[%emt 0:01:20]} e5 {[%emt 0:03:17]} 22. Qd3 {[%emt 0:02:21]} Bxg2 {[%emt 0:08:25]} 23. Nxg2 {[%emt 0:00:09]} Nd5 {[%emt 0:00:23]} 24. Qe2 {[%emt 0:03:29]} Nc5 {[%emt 0:02:39]} 25. Ne1 {[%emt 0:03:51]} e4 {[%emt 0:04:43]} 26. Nb3 {[%emt 0:05:15]} Nxb3 {[%emt 0:12:36]} 27. axb3 {[%emt 0:00:11]} Qb6 {[%emt 0:00:40]} 28. Nc2 {[%emt 0:01:14]} a4 {[%emt 0:04:41]} 29. Nd4 {[%emt 0:01:48]} axb3 {[%emt 0:01:01]} 30. Qg4 {[%emt 0:10:02]} Rxc1+ {[%emt 0:05:43]} 31. Rxc1 {[%emt 0:00:06]} Nf6 {[%emt 0:00:28]} 32. Qg5 {[%emt 0:03:29]} h6 {[%emt 0:03:27]} 33. Qf4 {[%emt 0:01:12]} Qd8 {[%emt 0:01:58]} 34. Rc6 {[%emt 0:02:25]} Re8 {[%emt 0:01:23]} 35. Nf5 {[%emt 0:05:12]} Qd1+ {[%emt 0:01:22]} 36. Kg2 {[%emt 0:00:32]} Nd5 {[%emt 0:00:42]} 37. Nxh6+ {[%emt 0:03:19]} gxh6 {[%emt 0:00:12]} 38. Qf5 {[%emt 0:01:12]} Qf3+ {[%emt 0:03:25]} 39. Qxf3 {[%emt 0:00:17]} exf3+ {[%emt 0:00:06]} 40. Kxf3 {[%emt 0:00:00]} Nb4 {[%emt 0:00:00]} 41. Rc3 {[%emt 0:00:44]} Re5 {[%emt 0:02:47]} 42. Rxb3 {[%emt 0:00:18]} Nc6 {[%emt 0:00:45]} 43. Rc3 {[%emt 0:00:41]} Na5 {[%emt 0:01:51]} 44. e4 {[%emt 0:01:09]} Nc4 {[%emt 0:03:11]} 45. Kf4 {[%emt 0:01:54]} f6 {[%emt 0:00:45]} 46. b3 {[%emt 0:00:50]} Nd6 {[%emt 0:01:05]} 47. f3 {[%emt 0:00:12]} Kf7 {[%emt 0:01:10]} 48. h4 {[%emt 0:00:13]} h5 {[%emt 0:01:31]} 49. Rd3 {[%emt 0:01:20]} Ke6 {[%emt 0:02:00]} 50. Rc3 {[%emt 0:00:15]} f5 {[%emt 0:04:32]} 51. exf5+ {[%emt 0:00:18]} Rxf5+ {[%emt 0:00:08]} 52. Ke3 {[%emt 0:00:07]} Kd5 {[%emt 0:03:22]} 53. Rd3+ {[%emt 0:00:30]} Ke5 {[%emt 0:01:58]} 54. Rc3 {[%emt 0:00:39]} Ke6 {[%emt 0:00:26]} 55. g4 {[%emt 0:02:19]} hxg4 {[%emt 0:00:45]} 56. fxg4 {[%emt 0:00:07]} Rf7 {[%emt 0:01:06]} 57. Rc5 {[%emt 0:00:33]} Rf1 {[%emt 0:02:36]} 58. Rc3 {[%emt 0:00:55]} Rh1 {[%emt 0:01:03]} 59. h5 {[%emt 0:00:32]} Rh3+ {[%emt 0:01:49]} 60. Kd4 {[%emt 0:00:10]} Rh4 {[%emt 0:00:13]} 61. Rc6 {[%emt 0:01:23]} Rxg4+ {[%emt 0:01:13]} 62. Kc5 {[%emt 0:00:04]} Rg5+ {[%emt 0:00:47]} 63. Kb6 {[%emt 0:00:08]} Rxh5 {[%emt 0:00:32]} 64. b4 {[%emt 0:00:07]} Rh4 {[%emt 0:01:01]} 65. Ka5 {[%emt 0:00:14]} Rc4 {[%emt 0:01:25]} 66. Ra6 {[%emt 0:00:14]} Kd5 {[%emt 0:00:37]} 67. Ra7 {[%emt 0:00:33]} Rc3 {[%emt 0:01:57]} 68. Rh7 {[%emt 0:01:04]} Kc6 {[%emt 0:00:18]} 0-1

[Event "FIDE WYCC Girls U14 2023"]
[Site "Montesilvano"]
[Date "2023.11.16"]
[Round "4.26"]
[White "Toth, Lili"]
[Black "Sodgerelt Naranbold"]
[Result "1/2-1/2"]
[ECO "D31"]
[WhiteElo "2199"]
[BlackElo "1419"]
[Annotator "RC"]
[PlyCount "68"]
[EventDate "2023.11.13"]
[EventType "swiss"]
[EventCountry "ITA"]
[SourceTitle "playchess.com"]
[Source "ChessBase"]
[SourceQuality "1"]
[TimeControl "40/5400+30:1800+30"]

1. c4 {[%emt 0:00:08]} e6 {[%emt 0:01:54]} 2. Nc3 {[%emt 0:01:08]} d5 {[%emt 0:01:51]} 3. d4 {[%emt 0:00:29]} a6 {[%emt 0:01:11]} 4. cxd5 {[%emt 0:04:33]} exd5 {[%emt 0:01:21]} 5. Bf4 {[%emt 0:00:33]} Nf6 {[%emt 0:01:35]} 6. e3 {[%emt 0:00:21]} Bd6 {[%emt 0:01:26]} 7. Bxd6 {[%emt 0:02:56]} Qxd6 {[%emt 0:01:02]} 8. Bd3 {[%emt 0:00:11]} O-O {[%emt 0:02:02]} 9. Qc2 {[%emt 0:00:29]} Re8 {[%emt 0:01:34]} 10. Nf3 {[%emt 0:02:24]} Nc6 {[%emt 0:01:23]} 11. a3 {[%emt 0:08:26]} Bg4 {[%emt 0:01:17]} 12. O-O {[%emt 0:05:22]} Bh5 {[%emt 0:11:20]} 13. Ne2 {[%emt 0:17:41]} Bg6 {[%emt 0:02:59]} 14. Bxg6 {[%emt 0:04:05]} hxg6 {[%emt 0:00:50]} 15. Rfc1 {[%emt 0:01:39]} Rac8 {[%emt 0:02:48]} 16. Nf4 {[%emt 0:07:30]} Ne4 {[%emt 0:03:25]} 17. Nd3 {[%emt 0:02:08]} f6 {[%emt 0:12:10]} 18. b4 {[%emt 0:00:57]} Ne7 {[%emt 0:02:41]} 19. Nc5 {[%emt 0:03:32]} Nxc5 {[%emt 0:03:46]} 20. bxc5 {[%emt 0:05:30]} Qe6 {[%emt 0:01:29]} 21. Qd3 {[%emt 0:02:30]} Kf7 {[%emt 0:02:41]} 22. Rab1 {[%emt 0:03:01]} Rb8 {[%emt 0:00:10]} 23. Rb3 {[%emt 0:02:56]} Nc6 {[%emt 0:01:30]} 24. Rcb1 {[%emt 0:01:23]} Na5 {[%emt 0:00:32]} 25. Rb4 {[%emt 0:02:08]} Rh8 {[%emt 0:01:31]} 26. Qc3 {[%emt 0:02:45]} Qf5 {[%emt 0:03:23]} 27. Qe1 {[%emt 0:06:56]} Qc8 {[%emt 0:01:12]} 28. e4 {[%emt 0:03:18]} Re8 {[%emt 0:03:07]} 29. e5 {[%emt 0:00:21]} Nc4 {[%emt 0:00:08]} 30. Qc3 {[%emt 0:00:58]} Qf5 {[%emt 0:01:11]} 31. h4 {[%emt 0:02:02]} b5 {[%emt 0:02:22]} 32. cxb6 {[%emt 0:02:09]} Rxb6 {[%emt 0:02:41]} 33. Re1 {[%emt 0:02:00]} Rc6 {[%emt 0:03:25]} 34. Qb3 {[%emt 0:00:43]} Qd7 1/2-1/2

[Event "FIDE WYCC Girls U14 2023"]
[Site "Montesilvano"]
[Date "2023.11.16"]
[Round "4.27"]
[White "Sosovickova, Martina"]
[Black "Balazs, Szabina Zoe"]
[Result "1-0"]
[ECO "B52"]
[WhiteElo "1877"]
[BlackElo "1552"]
[Annotator "NA RC"]
[PlyCount "65"]
[EventDate "2023.11.13"]
[EventType "swiss"]
[EventCountry "ITA"]
[SourceTitle "playchess.com"]
[Source "ChessBase"]
[SourceQuality "1"]
[TimeControl "40/5400+30:1800+30"]

1. e4 {[%emt 0:00:04]} c5 {[%emt 0:00:09]} 2. Nf3 {[%emt 0:00:05]} d6 {[%emt 0:00:09]} 3. Bb5+ {[%emt 0:00:05]} Bd7 {[%emt 0:00:27]} 4. Bxd7+ {[%emt 0:00:06]} Nxd7 {[%emt 0:00:08]} 5. O-O {[%emt 0:00:25]} Ngf6 {[%emt 0:00:21]} 6. Qe2 {[%emt 0:00:19]} e5 {[%emt 0:00:46]} 7. c3 {[%emt 0:00:58]} Be7 {[%emt 0:00:55]} 8. d4 {[%emt 0:00:52]} cxd4 {[%emt 0:00:54]} 9. cxd4 {[%emt 0:00:22]} O-O {[%emt 0:00:56]} 10. Nc3 {[%emt 0:02:13]} Re8 {[%emt 0:01:25]} 11. Rd1 {[%emt 0:02:59]} Qb8 {[%emt 0:03:21]} 12. Bg5 {[%emt 0:12:44]} a6 {[%emt 0:03:42]} 13. Rac1 {[%emt 0:03:26]} b5 {[%emt 0:02:01]} 14. dxe5 {[%emt 0:03:13]} dxe5 {[%emt 0:01:35]} 15. Nd5 {[%emt 0:13:36]} Nxd5 {[%emt 0:00:27]} 16. Rxd5 {[%emt 0:00:51]} Bxg5 {[%emt 0:01:19]} 17. Nxg5 {[%emt 0:00:51]} Qb7 {[%emt 0:03:18]} 18. f3 {[%emt 0:11:16]} f6 {[%emt 0:02:46]} 19. Nh3 {[%emt 0:00:49]} Nf8 {[%emt 0:06:30]} 20. Qd1 {[%emt 0:06:03]} Ne6 {[%emt 0:01:41]} 21. Rd7 {[%emt 0:02:29]} Qb6+ {[%emt 0:00:16]} 22. Kh1 {[%emt 0:00:29]} Rad8 {[%emt 0:00:41]} 23. Qd5 {[%emt 0:02:32]} Rxd7 {[%emt 0:05:28]} 24. Qxd7 {[%emt 0:00:12]} Rd8 {[%emt 0:00:07]} 25. Rc8 {[%emt 0:01:30]} Rxc8 {[%emt 0:00:15]} 26. Qxc8+ {[%emt 0:00:05]} Kf7 {[%emt 0:00:04]} 27. Qd7+ {[%emt 0:01:07]} Kg6 {[%emt 0:00:12]} 28. g4 {[%emt 0:04:16]} Kh6 {[%emt 0:01:02]} 29. Qf7 {[%emt 0:03:01]} g6 {[%emt 0:00:21]} 30. Qxf6 {[%emt 0:01:15]} Qe3 {[%emt 0:01:28]} 31. Qxe6 {[%emt 0:03:22]} Qxf3+ {[%emt 0:00:52]} 32. Kg1 {[%emt 0:00:07]} Qxh3 {[%emt 0:00:11]} 33. g5+ {[%emt 0:00:13]} 1-0

[Event "FIDE WYCC Girls U14 2023"]
[Site "Montesilvano"]
[Date "2023.11.16"]
[Round "4.28"]
[White "Seyhan, Pelin"]
[Black "Huseynova, Lala"]
[Result "0-1"]
[ECO "D00"]
[WhiteElo "1461"]
[BlackElo "1867"]
[Annotator "NA RC"]
[PlyCount "94"]
[EventDate "2023.11.13"]
[EventType "swiss"]
[EventCountry "ITA"]
[SourceTitle "playchess.com"]
[Source "ChessBase"]
[SourceQuality "1"]
[TimeControl "40/5400+30:1800+30"]

1. d4 {[%emt 0:00:03]} d5 {[%emt 0:00:10]} 2. Bf4 {[%emt 0:00:05]} c5 {[%emt 0:00:19]} 3. e3 {[%emt 0:00:06]} Nc6 {[%emt 0:01:26]} 4. Nd2 {[%emt 0:01:52]} cxd4 {[%emt 0:02:37]} 5. exd4 {[%emt 0:01:44]} Nxd4 {[%emt 0:03:37]} 6. c3 {[%emt 0:00:37]} Nc6 {[%emt 0:00:40]} 7. Ngf3 {[%emt 0:00:32]} Nf6 {[%emt 0:01:54]} 8. Bb5 {[%emt 0:00:25]} e6 {[%emt 0:04:54]} 9. Qe2 {[%emt 0:03:33]} Bd6 {[%emt 0:05:09]} 10. Ne5 {[%emt 0:03:29]} Qc7 {[%emt 0:01:03]} 11. c4 {[%emt 0:08:29]} Nd7 {[%emt 0:15:18]} 12. Nxd7 {[%emt 0:22:08]} Bxf4 {[%emt 0:01:56]} 13. Bxc6 {[%emt 0:01:35]} bxc6 {[%emt 0:01:29]} 14. Nc5 {[%emt 0:00:14]} Bd6 {[%emt 0:04:33]} 15. Ncb3 {[%emt 0:01:46]} Ba6 {[%emt 0:02:53]} 16. h3 {[%emt 0:02:09]} O-O {[%emt 0:15:33]} 17. O-O {[%emt 0:00:10]} c5 {[%emt 0:02:02]} 18. Rac1 {[%emt 0:02:17]} Rac8 {[%emt 0:05:13]} 19. Rfd1 {[%emt 0:01:43]} Qb6 {[%emt 0:05:14]} 20. Qh5 {[%emt 0:04:26]} Bb7 {[%emt 0:00:42]} 21. Nf3 {[%emt 0:02:59]} a5 {[%emt 0:08:29]} 22. Rc2 {[%emt 0:01:56]} a4 {[%emt 0:01:08]} 23. Nbd2 {[%emt 0:00:14]} h6 {[%emt 0:00:44]} 24. Nf1 {[%emt 0:06:12]} d4 {[%emt 0:01:28]} 25. N1d2 {[%emt 0:06:10]} Qc6 {[%emt 0:01:09]} 26. Re1 {[%emt 0:02:13]} e5 {[%emt 0:00:57]} 27. Ne4 {[%emt 0:00:26]} Bb8 {[%emt 0:01:34]} 28. Nh4 {[%emt 0:03:50]} Rce8 {[%emt 0:08:24]} 29. Rd2 {[%emt 0:03:53]} Bc8 {[%emt 0:00:59]} 30. g4 {[%emt 0:01:44]} Bc7 {[%emt 0:00:45]} 31. Rd3 {[%emt 0:00:31]} Bd8 {[%emt 0:01:27]} 32. Nf5 {[%emt 0:03:17]} Re6 {[%emt 0:00:18]} 33. Rg3 {[%emt 0:01:31]} Rg6 {[%emt 0:01:03]} 34. h4 {[%emt 0:04:11]} Bd7 {[%emt 0:00:46]} 35. Rd3 {[%emt 0:05:08]} Be8 {[%emt 0:00:35]} 36. Ned6 {[%emt 0:00:53]} Rxd6 {[%emt 0:00:18]} 37. Nxd6 {[%emt 0:00:03]} Qxd6 38. Qxe5 {[%emt 0:00:12]} Bc7 {[%emt 0:00:54]} 39. Qxd6 {[%emt 0:00:12]} Bxd6 {[%emt 0:00:06]} 40. b3 {[%emt 0:00:00]} axb3 {[%emt 0:00:00]} 41. Rxb3 {[%emt 0:00:50]} Ba4 {[%emt 0:02:39]} 42. Rb6 {[%emt 0:02:05]} Rd8 {[%emt 0:00:09]} 43. Ra6 {[%emt 0:00:57]} Bc2 {[%emt 0:00:12]} 44. g5 {[%emt 0:01:28]} hxg5 {[%emt 0:00:22]} 45. hxg5 {[%emt 0:00:06]} d3 {[%emt 0:00:15]} 46. g6 {[%emt 0:00:10]} fxg6 {[%emt 0:00:28]} 47. Re6 {[%emt 0:00:07]} Bf8 {[%emt 0:00:17]} 0-1

[Event "FIDE WYCC Girls U14 2023"]
[Site "Montesilvano"]
[Date "2023.11.16"]
[Round "4.29"]
[White "Lorenz, Veronika"]
[Black "Hong, Jueun"]
[Result "1-0"]
[ECO "B54"]
[WhiteElo "1791"]
[BlackElo "1299"]
[Annotator "NA RC"]
[PlyCount "65"]
[EventDate "2023.11.13"]
[EventType "swiss"]
[EventCountry "ITA"]
[SourceTitle "playchess.com"]
[Source "ChessBase"]
[SourceQuality "1"]
[TimeControl "40/5400+30:1800+30"]

1. e4 {[%emt 0:00:01]} c5 {[%emt 0:00:07]} 2. Nf3 {[%emt 0:00:01]} d6 {[%emt 0:00:05]} 3. d4 {[%emt 0:00:03]} cxd4 {[%emt 0:00:04]} 4. Nxd4 {[%emt 0:00:01]} Nf6 {[%emt 0:00:02]} 5. f3 {[%emt 0:00:13]} g6 {[%emt 0:00:50]} 6. c4 {[%emt 0:00:05]} Bg7 {[%emt 0:01:07]} 7. Nc3 {[%emt 0:00:06]} Nc6 {[%emt 0:01:15]} 8. Be3 {[%emt 0:00:04]} O-O {[%emt 0:01:03]} 9. Qd2 {[%emt 0:01:00]} Bd7 {[%emt 0:04:08]} 10. Be2 {[%emt 0:00:04]} Qa5 {[%emt 0:04:27]} 11. O-O {[%emt 0:00:39]} Rfc8 {[%emt 0:06:31]} 12. b3 {[%emt 0:00:45]} Ne5 {[%emt 0:03:57]} 13. Qb2 {[%emt 0:00:47]} a6 {[%emt 0:05:39]} 14. Rac1 {[%emt 0:05:49]} Be6 {[%emt 0:09:56]} 15. b4 {[%emt 0:02:47]} Qd8 {[%emt 0:01:06]} 16. c5 {[%emt 0:01:25]} Bc4 {[%emt 0:03:30]} 17. Rfd1 {[%emt 0:01:38]} Qf8 {[%emt 0:10:18]} 18. Na4 {[%emt 0:02:50]} Bxe2 {[%emt 0:02:42]} 19. Qxe2 {[%emt 0:02:41]} Rd8 {[%emt 0:02:50]} 20. Nb6 {[%emt 0:01:33]} Rab8 {[%emt 0:00:36]} 21. c6 {[%emt 0:08:19]} Nxc6 {[%emt 0:04:06]} 22. Nxc6 {[%emt 0:00:02]} bxc6 {[%emt 0:00:16]} 23. Rxc6 {[%emt 0:00:01]} Nd7 {[%emt 0:06:17]} 24. Qxa6 {[%emt 0:03:01]} Nxb6 {[%emt 0:01:30]} 25. Bxb6 {[%emt 0:00:23]} Rdc8 {[%emt 0:02:02]} 26. Rdc1 {[%emt 0:02:18]} Rxc6 {[%emt 0:00:19]} 27. Rxc6 {[%emt 0:00:06]} Qe8 {[%emt 0:00:24]} 28. Qc4 {[%emt 0:02:25]} Bf6 {[%emt 0:02:00]} 29. b5 {[%emt 0:01:31]} Ra8 {[%emt 0:01:24]} 30. Be3 {[%emt 0:03:00]} Bg7 {[%emt 0:00:27]} 31. b6 {[%emt 0:00:32]} Qb8 {[%emt 0:01:06]} 32. Rc7 {[%emt 0:00:25]} Bf8 {[%emt 0:00:10]} 33. b7 {[%emt 0:04:03]} 1-0